bitfinex/quotes_ETHUSD_20220213
["timestamp","ask_amount","ask_price","bid_price","bid_amount"]
[1644747077594,0.17527432,2915.3,2914.8,3.40865223]
[1644747077595,0.17527432,2915.3,2914.8,23.88074352]
[1644747077786,0.0108422,2915.1,2914.9,1.0]
[1644747077991,0.0433623,2915.5,2915.1,3.1]
[1644747078192,0.00377576,2915.5,2915.2,5.3468]
[1644747078386,0.00377576,2915.5,2915.2,26.51889129]
[1644747078585,0.00377576,2915.5,2915.3,0.87969462]
[1644747078884,10.98,2916.2,2916.1,1.07135439]
[1644747079084,7.48,2916.2,2915.4,1.1286]
[1644747079488,8.12681219,2916.2,2915.4,1.1286]
[1644747080334,0.00685467,2915.9,2915.4,1.1286]
[1644747081151,0.1713,2916.1,2915.4,1.1286]
[1644747081338,0.1713,2916.1,2915.5,3.23730374]
[1644747081547,0.1713,2916.1,2915.4,1.13944288]
[1644747081548,0.01084124,2915.8,2915.4,1.13944288]
[1644747081736,0.01084124,2915.8,2915.5,1.14501749]
[1644747081936,0.01084124,2915.8,2915.5,2.47912965]
[1644747082435,0.1713,2916.1,2915.5,2.47912965]
[1644747082436,0.1713,2916.1,2915.5,3.47912965]
[1644747082737,0.01084124,2915.8,2915.5,3.47912965]
[1644747083593,0.1713,2916.1,2915.5,3.47912965]
[1644747083787,0.01084124,2915.8,2915.5,3.47912965]
[1644747084180,0.01084124,2915.8,2915.5,6.72744666]
[1644747084581,0.01084124,2915.8,2915.5,3.47912965]
[1644747084783,0.1713,2916.1,2915.5,6.68947258]
[1644747084985,7.48,2916.2,2915.5,6.68947258]
[1644747085217,0.01084124,2915.8,2915.5,3.47912965]
[1644747085390,0.01084124,2915.8,2915.5,2.44501749]
[1644747085993,7.48,2916.2,2915.5,2.44501749]
[1644747086185,0.01084124,2915.8,2915.5,2.44501749]
[1644747086787,0.01084124,2915.8,2915.5,0.84501749]
[1644747087409,0.1713,2916.1,2915.5,0.84501749]
[1644747087533,0.01084124,2915.8,2915.5,0.84501749]
[1644747088245,0.01084124,2915.8,2915.5,1.44501749]
[1644747088458,0.1713,2916.1,2915.5,4.71596852]
[1644747088637,0.1713,2916.1,2915.5,5.71596852]
[1644747088840,0.01084124,2915.8,2915.5,5.71596852]
[1644747089739,0.1713,2916.1,2915.5,5.71596852]
[1644747089943,0.01084124,2915.8,2915.5,5.71596852]
[1644747090345,0.01084124,2915.8,2915.6,0.1713]
[1644747090751,7.48,2916.2,2915.6,0.1713]
[1644747090964,1.45921964,2916.1,2916.0,1.19205576]
[1644747092383,1.40921964,2916.1,2916.0,1.19205576]
[1644747096838,1.40921964,2916.1,2915.8,1.0]
[1644747097044,1.41299447,2916.1,2915.8,1.3]
[1644747097237,1.41299447,2916.1,2915.8,0.3]
[1644747097438,1.41299447,2916.1,2915.5,4.75504524]
[1644747097638,1.41299447,2916.1,2915.5,5.05504524]
[1644747097944,1.41299447,2916.1,2915.8,0.8784569]
[1644747098138,0.00377483,2916.1,2915.8,0.8784569]
[1644747098338,0.01084103,2915.9,2915.8,1.1784569]
[1644747098611,0.01084103,2915.9,2915.8,0.3]
[1644747098786,0.01084103,2915.9,2915.6,0.17209129]
[1644747098981,0.01084103,2915.9,2915.7,1.04915123]
[1644747099180,7.48377483,2916.5,2915.7,1.04915123]
[1644747099588,0.0108411,2915.9,2915.7,1.04915123]
[1644747099791,0.0108411,2915.9,2915.7,1.22124252]
[1644747100185,0.0108411,2915.9,2915.7,1.52124252]
[1644747100434,7.48377483,2916.5,2915.7,1.82124252]
[1644747100785,7.48377483,2916.5,2915.7,2.82124252]
[1644747101993,7.48377483,2916.5,2915.7,1.82124252]
[1644747102192,7.48377483,2916.5,2915.8,1.0]
[1644747102434,7.48377483,2916.5,2916.2,1.01706928]
[1644747103237,7.49461492,2916.5,2916.2,1.02791064]
[1644747104041,7.48377483,2916.5,2916.2,1.01706928]
[1644747104253,7.49461492,2916.5,2916.2,0.01084136]
[1644747105041,0.01917603,2916.1,2915.7,4.97461308]
[1644747105238,0.01917603,2916.1,2915.7,4.94501116]
[1644747105447,0.01917603,2916.1,2915.8,0.90274166]
[1644747106691,0.01917603,2916.1,2915.9,3.23079029]
[1644747106889,0.01917603,2916.1,2916.0,1.0]
[1644747107104,0.01917603,2916.1,2916.0,4.66071197]
[1644747109099,0.01917603,2916.1,2916.0,4.83280326]
[1644747109344,0.01917603,2916.1,2916.0,5.00410326]
[1644747109499,0.00377483,2917.0,2916.2,1.71399]
[1644747109703,0.00377483,2917.0,2916.3,3.41930171]
[1644747109950,0.00377483,2917.0,2916.9,0.84255388]
[1644747110242,8.12681219,2917.1,2916.3,1.4605]
[1644747110538,0.00377483,2917.0,2916.3,2.4605]
[1644747110754,0.65058702,2917.0,2916.3,1.1605]
[1644747111246,0.64681219,2916.9,2916.3,1.1605]
[1644747111517,0.00377483,2916.8,2916.3,2.11190141]
[1644747111851,0.00377483,2916.8,2916.3,2.41190141]
[1644747112342,1.46260478,2917.0,2916.3,2.41190141]
[1644747112746,0.01084,2916.7,2916.3,2.41190141]
[1644747112943,1.45882995,2916.6,2916.3,2.41190141]
[1644747113147,1.46260478,2916.6,2916.3,2.41190141]
[1644747113341,1.46260478,2916.6,2916.3,1.25140141]
[1644747113596,1.46260478,2916.6,2916.4,3.20203303]
[1644747113788,1.45882995,2916.5,2916.4,3.20203303]
[1644747114007,0.01084014,2916.6,2916.4,3.20203303]
[1644747114185,1.45882995,2916.5,2916.4,4.50203303]
[1644747114584,1.45882995,2916.5,2916.4,1.0]
[1644747114869,1.45882995,2916.5,2916.3,2.25140141]
[1644747114988,1.45882995,2916.4,2916.3,2.25140141]
[1644747115390,1.45882995,2916.4,2916.3,1.55140141]
[1644747115953,1.45882995,2916.5,2916.3,1.55140141]
[1644747116088,1.45882995,2916.4,2916.3,1.72270141]
[1644747117341,1.45882995,2916.4,2916.3,2.24655827]
[1644747117731,0.01084466,2916.5,2916.3,2.24655827]
[1644747117948,1.45882995,2916.4,2916.3,2.24655827]
[1644747118146,1.45882995,2916.4,2916.3,5.45507544]
[1644747118333,1.45882995,2916.4,2916.3,6.45507544]
[1644747118538,1.45882995,2916.4,2916.3,2.56046728]
[1644747118735,1.45882995,2916.4,2916.3,0.39045056]
[1644747118935,2.1164868,2916.5,2916.3,0.39045056]
[1644747119134,1.45882995,2916.4,2916.3,0.39045056]
[1644747119938,1.45882995,2916.4,2916.2,0.01084611]
[1644747120310,1.45882995,2916.4,2916.3,1.08319968]
[1644747120439,2.1164868,2916.5,2916.2,0.01084611]
[1644747120652,1.45882995,2916.4,2916.2,0.01084611]
[1644747120841,1.63012995,2916.4,2915.7,1.2334]
[1644747121093,2.10941697,2916.3,2915.7,1.2334]
[1644747121285,2.10941697,2916.3,2916.2,0.01084611]
[1644747121584,0.64681219,2916.3,2916.2,0.8823107]
[1644747121791,2.27694214,2916.4,2916.2,0.8823107]
[1644747121985,1.45882995,2916.3,2916.2,0.87146459]
[1644747122186,2.10564214,2916.4,2916.2,0.87146459]
[1644747122382,1.45882995,2916.3,2916.2,0.88231059]
[1644747122789,2.10564214,2916.4,2916.2,0.88231059]
[1644747122982,1.45882995,2916.3,2916.2,0.88231059]
[1644747123182,1.45882995,2916.3,2916.2,0.87146459]
[1644747123382,0.64681219,2916.4,2915.7,2.5334]
[1644747123589,0.00377483,2916.2,2916.1,0.01084606]
[1644747123783,0.00377483,2916.3,2916.1,0.01084606]
[1644747123983,2.10564214,2916.4,2916.1,0.01084606]
[1644747124182,2.10941697,2916.4,2916.1,0.01084606]
[1644747124382,1.45882995,2916.3,2915.9,1.0]
[1644747124647,1.45882995,2916.2,2916.0,0.3]
[1644747124842,0.86680628,2916.8,2916.1,0.01084606]
[1644747124843,0.66143144,2916.5,2916.1,0.01084606]
[1644747125040,1.45896473,2916.4,2916.2,1.05603958]
[1644747125935,1.45896473,2916.3,2916.2,1.06688558]
[1644747126142,1.45896473,2916.4,2916.2,1.06688558]
[1644747126936,1.45896473,2916.4,2916.2,1.05603958]
[1644747127147,1.45896473,2916.3,2916.2,1.06688558]
[1644747127340,1.45896473,2916.4,2916.2,1.06688558]
[1644747127539,1.45896473,2916.3,2916.2,1.06688558]
[1644747127940,1.45896473,2916.4,2916.2,1.06688558]
[1644747128137,1.45896473,2916.4,2916.2,1.05603958]
[1644747128338,1.45896473,2916.3,2916.2,1.05603958]
[1644747128582,1.45896473,2916.4,2916.2,1.05603958]
[1644747128782,1.45896473,2916.3,2916.2,1.05603958]
[1644747128983,1.45886723,2916.3,2916.2,5.20005444]
[1644747129182,1.45886723,2916.4,2916.2,5.20005444]
[1644747129384,1.45886723,2916.4,2916.3,4.49078321]
[1644747129684,0.01084442,2916.5,2916.3,4.79078321]
[1644747129907,1.45886723,2916.4,2916.3,1.3]
[1644747130289,1.45886723,2916.4,2916.3,4.58096774]
[1644747130488,1.45886723,2916.4,2916.3,4.55111607]
[1644747130688,0.65058702,2916.8,2916.3,4.27213541]
[1644747130689,2.10945425,2916.8,2916.3,4.27213541]
[1644747130904,0.01084466,2916.5,2916.3,1.0]
[1644747131147,1.45886723,2916.4,2916.3,1.0]
[1644747131289,1.45886723,2916.4,2916.3,3.27151837]
[1644747131491,1.09494083,2916.9,2916.6,2.9]
[1644747131696,1.86957169,2917.7,2916.6,1.3765]
[1644747131697,0.65297179,2917.3,2916.6,1.3765]
[1644747131889,0.65297179,2917.3,2916.7,1.6]
[1644747132105,1.29816793,2917.7,2916.7,0.6]
[1644747132352,0.1713,2917.7,2916.8,4.63600095]
[1644747132550,7.48,2917.5,2916.9,0.3]
[1644747132746,7.48,2917.5,2916.9,1.3]
[1644747132967,7.48,2917.5,2916.9,0.3]
[1644747133147,7.48,2917.5,2916.9,0.6]
[1644747133365,7.48,2917.5,2916.9,0.77209129]
[1644747133753,7.48,2917.5,2917.0,3.97414751]
[1644747133953,7.48,2917.5,2917.0,4.14544751]
[1644747134155,7.48,2917.5,2917.1,1.0]
[1644747134351,7.48,2917.5,2917.2,4.53830377]
[1644747134751,12.71856793,2918.1,2917.3,1.6]
[1644747134952,12.71856793,2918.1,2917.4,3.38026315]
[1644747135351,8.77816793,2918.1,2917.5,1.18416741]
[1644747135554,0.01084781,2917.9,2917.6,3.33268025]
[1644747136391,0.01084781,2917.9,2917.8,0.85657]
[1644747136695,7.48,2918.1,2917.9,2.65]
[1644747136696,3.0033224,2918.1,2917.9,2.65]
[1644747136896,1.32530101,2918.3,2918.0,4.37381141]
[1644747136897,0.02713308,2918.3,2918.0,4.37381141]
[1644747137295,0.02713308,2918.3,2917.8,1.02787]
[1644747137507,0.02713308,2918.3,2917.9,0.3]
[1644747137720,0.1713,2918.9,2917.9,0.3]
[1644747137894,0.1713,2918.9,2917.8,4.8606477]
[1644747138204,0.21222648,2918.9,2917.8,0.3]
[1644747138394,0.21222648,2918.9,2917.7,2.8422]
[1644747138995,1.07337161,2918.5,2917.7,1.8422]
[1644747139212,1.07337161,2918.5,2917.7,1.2422]
[1644747139395,0.21222648,2918.9,2917.7,1.2422]
[1644747139846,0.21222648,2918.9,2917.7,4.53495563]
[1644747140040,0.21222648,2918.9,2917.7,1.2422]
[1644747140252,0.21222648,2918.9,2917.8,1.0]
[1644747140444,0.01085197,2918.4,2917.7,4.50886666]
[1644747140640,0.01085197,2918.4,2917.7,4.80886666]
[1644747140885,0.01085197,2918.4,2917.8,1.0]
[1644747141241,1.01454965,2918.6,2917.7,1.2422]
[1644747141542,0.1713,2918.5,2917.5,0.94280647]
[1644747141742,3.75973872,2918.5,2917.3,2.06676]
[1644747141974,3.75973872,2918.5,2917.3,2.21]
[1644747141975,4.72533872,2918.5,2917.3,2.21]
[1644747142543,4.72533872,2918.5,2917.3,1.0]
[1644747142749,0.0067792,2918.0,2917.4,1.09929869]
[1644747143446,0.0067792,2918.0,2917.2,5.3036]
[1644747143447,0.45609714,2917.3,2917.2,5.3036]
[1644747143686,0.35227631,2918.0,2917.2,0.3]
[1644747143886,0.00677874,2918.0,2917.2,0.1713]
[1644747144795,5.2906,2918.2,2917.2,0.1713]
[1644747144992,5.2906,2918.2,2917.1,5.1755]
[1644747145319,0.97134826,2918.0,2917.1,5.1755]
[1644747145992,0.96049149,2918.0,2917.1,5.1755]
[1644747146593,0.0038013,2917.9,2917.1,5.1755]
[1644747146896,0.0038013,2917.9,2917.0,4.66692903]
[1644747147368,0.0038013,2917.9,2916.5,5.1542]
[1644747147369,4.70947217,2917.9,2916.5,5.1542]
[1644747147539,0.1713,2917.8,2916.5,5.1542]
[1644747147736,0.0038013,2917.7,2916.5,5.1542]
[1644747147945,0.1713,2917.6,2916.5,5.1542]
[1644747148337,0.0038013,2917.5,2916.5,5.1542]
[1644747148599,1.0652439,2917.4,2916.6,1.0]
[1644747148744,0.0038013,2917.6,2916.6,4.36393949]
[1644747148946,0.0038013,2917.3,2916.6,1.0]
[1644747149140,0.0038013,2917.6,2916.6,1.0]
[1644747149342,0.0038013,2917.6,2916.5,5.4542]
[1644747149541,0.0038013,2917.6,2916.6,1.0]
[1644747149752,1.08251116,2917.6,2916.6,1.0]
[1644747149941,1.08251116,2917.6,2916.5,5.1542]
[1644747149942,1.08251116,2917.6,2916.8,0.01085647]
[1644747150942,1.16695764,2917.1,2916.3,0.25]
[1644747151187,1.16695764,2917.1,2916.1,0.88924828]
[1644747151188,0.0038013,2917.0,2916.1,0.88924828]
[1644747151392,3.6751013,2917.0,2915.9,5.86007831]
[1644747151586,3.6751013,2917.0,2915.9,0.51277831]
[1644747151788,4.6679013,2917.0,2915.9,0.51277831]
[1644747152588,4.6679013,2917.0,2915.9,0.81277831]
[1644747152790,4.6679013,2917.0,2916.0,0.3]
[1644747153304,1.45862385,2916.9,2916.0,0.3]
[1644747153589,3.44174512,2916.8,2915.9,0.51277831]
[1644747153788,3.60482017,2917.0,2915.9,0.51277831]
[1644747153988,1.45861619,2916.9,2915.9,0.51277831]
[1644747154193,3.14101866,2916.8,2915.9,0.51277831]
[1644747154397,0.96419645,2916.6,2915.9,0.51277831]
[1644747154590,0.1751013,2917.0,2915.9,0.51277831]
[1644747154840,1.4586367,2916.9,2916.2,0.01085202]
[1644747155039,3.48110725,2916.8,2916.2,0.01085202]
[1644747155440,0.1713,2917.2,2916.2,0.01085202]
[1644747155645,4.03089015,2917.3,2915.9,0.51277831]
[1644747155646,0.85969691,2917.0,2915.9,0.51277831]
[1644747155843,3.29646017,2916.9,2915.9,0.51277831]
[1644747156041,3.30026147,2916.9,2916.6,0.01085153]
[1644747156841,3.30026147,2916.9,2915.9,0.51277831]
[1644747157042,3.30026147,2916.9,2916.0,0.85713]
[1644747157241,3.30026147,2916.9,2916.6,0.01085146]
[1644747157445,0.0038013,2916.9,2916.6,0.01085146]
[1644747158144,0.0038013,2916.9,2916.0,0.85713]
[1644747158347,0.0038013,2916.9,2916.6,0.01085146]
[1644747158588,0.85969691,2917.0,2916.6,0.01085146]
[1644747159190,3.09145121,2916.9,2916.6,0.01085146]
[1644747159391,0.1713,2917.1,2916.0,1.99473]
[1644747159691,0.1713,2917.1,2916.7,0.01085139]
[1644747159692,0.0038013,2917.0,2916.7,0.01085139]
[1644747159901,0.0038013,2917.1,2916.7,0.01085139]
[1644747160132,1.45853556,2917.1,2916.7,0.01085139]
[1644747160296,0.88153274,2916.9,2916.7,0.01085139]
[1644747160596,0.88153274,2916.9,2916.0,1.1376]
[1644747160597,3.12826086,2916.8,2916.0,2.1376]
[1644747160899,0.88153274,2916.9,2916.8,0.01085125]
[1644747161698,0.88153274,2916.9,2916.0,1.1376]
[1644747161896,3.116119,2916.8,2916.7,0.01085132]
[1644747162113,0.88153274,2916.9,2916.7,0.01085132]
[1644747162763,0.1751013,2917.2,2916.7,0.01085132]
[1644747162952,1.45852939,2917.1,2916.0,1.1376]
[1644747163155,3.13333838,2917.0,2916.7,0.01085139]
[1644747163406,0.1751013,2917.2,2916.7,0.01085139]
[1644747163558,0.1751013,2917.2,2916.0,1.99472]
[1644747163559,0.02170278,2916.6,2916.0,1.99472]
[1644747163957,0.02170278,2916.6,2916.2,0.2419586]
[1644747164155,0.02170278,2916.6,2916.1,0.3]
[1644747164357,0.02170278,2916.6,2916.1,1.6]
[1644747164576,0.02170278,2916.6,2916.1,0.6]
[1644747164761,0.02170278,2916.6,2916.1,1.6]
[1644747165356,0.02170278,2916.6,2916.3,0.91789253]
[1644747165564,0.02170278,2916.6,2916.3,1.21789253]
[1644747165761,0.02170278,2916.6,2916.3,1.51789253]
[1644747166194,0.02170278,2916.6,2916.4,0.85698]
[1644747166602,0.02170278,2916.6,2916.4,1.02907129]
[1644747166796,0.0038013,2917.5,2916.5,4.47209129]
[1644747166992,3.61869085,2918.1,2916.5,4.47209129]
[1644747166993,0.0038013,2917.6,2916.5,4.47209129]
[1644747167192,1.31205942,2917.8,2916.6,2.41019129]
[1644747167392,1.31586809,2917.8,2916.6,1.41019129]
[1644747167593,1.31586809,2917.8,2916.7,0.17209129]
[1644747167849,1.09246805,2917.7,2916.7,1.05153173]
[1644747167994,0.01084975,2917.3,2916.6,1.2489527]
[1644747168196,0.01084975,2917.3,2916.6,0.0108527]
[1644747168395,0.1713,2917.2,2916.6,0.0108527]
[1644747168800,0.01465842,2917.3,2916.6,0.0108527]
[1644747169078,0.1713,2917.2,2916.3,5.1653]
[1644747169203,1.1884005,2917.0,2916.6,0.010852]
[1644747170053,0.00380867,2917.3,2916.4,1.0]
[1644747170567,0.00380867,2917.5,2916.6,0.00406914]
[1644747171153,1.02454217,2917.3,2916.6,0.00406914]
[1644747171357,0.00380867,2917.2,2916.4,2.1852]
[1644747171553,1.02835084,2917.3,2916.6,0.00406914]
[1644747172662,0.01081548,2917.2,2916.6,0.01081782]
[1644747173054,3.08253171,2917.2,2916.6,0.01081782]
[1644747173265,0.01081548,2917.2,2916.6,0.01081782]
[1644747173712,3.47566225,2917.2,2916.3,5.1653]
[1644747173901,0.1713,2917.1,2916.6,0.01081771]
[1644747174694,0.90275232,2916.8,2916.6,0.01081771]
[1644747174897,0.90275232,2916.8,2915.8,6.34699444]
[1644747175105,0.90275232,2916.8,2915.8,5.4682]
[1644747175298,0.90275232,2916.8,2916.6,0.01081759]
[1644747175896,3.6713,2917.1,2916.6,0.01081759]
[1644747176113,3.6713,2917.1,2915.8,5.64029129]
[1644747176297,3.6713,2917.1,2915.8,6.24029129]
[1644747176609,3.6713,2917.1,2916.6,0.01081724]
[1644747177203,1.00339076,2916.7,2916.6,0.01081724]
[1644747177452,1.00339076,2916.7,2915.8,6.24029129]
[1644747177854,3.6713,2917.1,2915.8,6.24029129]
[1644747178954,0.99380021,2916.8,2916.3,0.01044786]
[1644747179752,0.99380021,2916.8,2915.8,6.24029129]
[1644747180158,0.99380021,2916.8,2916.4,0.01044773]
[1644747180969,3.39306526,2916.7,2915.8,5.64029129]
[1644747181201,3.56436526,2916.7,2915.8,5.4682]
[1644747181397,3.56436526,2916.7,2916.5,0.01044767]
[1644747182003,3.39306526,2916.7,2916.5,0.01044767]
[1644747182201,3.39306526,2916.7,2915.8,5.4682]
[1644747182407,3.39306526,2916.7,2916.5,0.0102645]
[1644747183414,3.39306526,2916.7,2915.8,5.4682]
[1644747183415,0.03079349,2916.3,2915.8,0.25]
[1644747183600,0.03079349,2916.3,2915.4,4.3085]
[1644747183800,0.03079349,2916.3,2915.5,1.0]
[1644747184948,0.03079349,2916.3,2915.8,0.01026534]
[1644747185887,0.03079349,2916.3,2915.5,1.0]
[1644747186148,0.03079349,2916.3,2915.9,0.0102848]
[1644747186757,1.0322078,2916.2,2915.9,0.0102848]
[1644747186953,3.31103546,2916.1,2915.4,4.3085]
[1644747187148,3.31103546,2916.1,2916.0,0.01028474]
[1644747187349,4.76997126,2916.1,2916.0,0.01028474]
[1644747188064,4.76997126,2916.1,2915.4,4.3085]
[1644747188247,1.4589358,2916.0,2915.4,4.3085]
[1644747188448,1.4589358,2916.0,2915.9,0.0102848]
[1644747189293,1.45769131,2916.0,2915.4,3.0613]
[1644747189497,1.45769131,2916.0,2915.8,0.01027579]
[1644747190096,3.10860906,2915.9,2915.8,0.01027579]
[1644747190302,3.27209698,2916.1,2915.8,0.01027579]
[1644747190514,3.27209698,2916.1,2915.4,3.0613]
[1644747190928,3.27209698,2916.1,2915.7,0.01027591]
[1644747191719,3.27209698,2916.1,2915.4,3.0613]
[1644747191913,1.10184627,2915.7,2915.4,3.0613]
[1644747192105,1.10184627,2915.7,2915.2,5.2859]
[1644747192988,0.1713,2916.2,2915.2,5.2859]
[1644747193141,0.1713,2916.2,2915.3,0.01027707]
[1644747194143,0.98134833,2915.9,2915.2,5.5859]
[1644747194355,3.10150602,2915.8,2915.6,0.01027671]
[1644747194561,0.98134833,2915.9,2915.6,0.01027671]
[1644747194946,3.13088053,2915.8,2915.6,0.01027671]
[1644747195192,3.1100839,2915.8,2915.6,0.01027671]
[1644747195347,3.09482758,2915.8,2915.2,5.2859]
[1644747195563,3.077577,2915.8,2915.6,0.01027677]
[1644747195747,3.09481305,2915.8,2915.6,0.01027677]
[1644747196511,3.09481305,2915.8,2914.7,5.6943]
[1644747196692,0.99192323,2915.4,2914.7,5.9943]
[1644747196892,3.22595561,2915.3,2914.7,6.0443]
[1644747197091,3.22595561,2915.3,2914.8,1.0]
[1644747197904,3.10495102,2915.3,2914.8,1.0]
[1644747198095,3.10495102,2915.3,2914.9,0.01027751]
[1644747198895,3.10495102,2915.3,2914.8,1.0]
[1644747199308,3.10495102,2915.3,2915.0,0.01027745]
[1644747199509,1.1566,2915.7,2915.0,0.01027745]
[1644747199696,0.19613782,2915.7,2915.0,0.01027745]
[1644747199953,0.1715,2916.2,2915.0,0.01027745]
[1644747200150,0.03079349,2916.3,2915.0,1.2372]
[1644747200349,0.03079349,2916.3,2915.1,3.6284965]
[1644747200549,0.03079349,2916.3,2915.2,0.0102772]
[1644747200753,0.03079349,2916.3,2915.4,0.85729]
[1644747200977,0.03079349,2916.3,2915.5,3.80497435]
[1644747201147,0.03079349,2916.3,2915.5,4.40497435]
[1644747201349,0.03079349,2916.3,2915.6,1.0]
[1644747201549,0.03079349,2916.3,2915.8,0.00352843]
[1644747202553,0.03079349,2916.3,2915.5,5.01883096]
[1644747202758,0.03079349,2916.3,2915.9,0.01026971]
[1644747202954,0.92649945,2916.2,2915.9,0.01026971]
[1644747203795,0.92649945,2916.2,2915.5,1.1726]
[1644747203999,0.92649945,2916.2,2915.9,0.01026971]
[1644747204901,0.92649945,2916.2,2915.5,1.1726]
[1644747205106,0.92649945,2916.2,2915.4,5.3764]
[1644747205302,0.1713,2916.1,2915.9,0.01034098]
[1644747205503,0.02068195,2915.7,2915.1,1.201]
[1644747205803,0.02068195,2915.7,2915.2,0.3]
[1644747206001,0.02068195,2915.7,2915.2,3.54309435]
[1644747206201,0.02068195,2915.7,2915.2,0.3]
[1644747206803,0.02068195,2915.7,2915.2,1.3]
[1644747207201,3.42068195,2915.7,2915.2,1.3]
[1644747208347,3.42068195,2915.7,2915.2,0.3]
[1644747208548,0.8870599,2915.6,2915.1,1.201]
[1644747208765,3.42068195,2915.7,2915.3,0.01080771]
[1644747209766,3.42068195,2915.7,2914.9,5.4359]
[1644747209951,3.42068195,2915.7,2915.4,0.01080764]
[1644747210950,3.42068195,2915.7,2914.9,5.4359]
[1644747211202,3.42068195,2915.7,2915.4,0.01080758]
[1644747212209,3.42068195,2915.7,2914.9,5.4359]
[1644747212405,3.42068195,2915.7,2915.4,0.01080758]
[1644747213307,3.42068195,2915.7,2914.9,5.4359]
[1644747213747,3.42068195,2915.7,2915.4,0.01080758]
[1644747214507,3.42068195,2915.7,2915.1,0.85739]
[1644747214707,3.42068195,2915.7,2915.2,0.11092397]
[1644747214993,3.42068195,2915.7,2915.4,0.01080758]
[1644747215746,3.42068195,2915.7,2915.2,0.11092397]
[1644747215964,3.42068195,2915.7,2915.4,0.01080758]
[1644747217053,3.42068195,2915.7,2915.2,0.11092397]
[1644747217054,3.42068195,2915.7,2915.1,0.85739]
[1644747217246,3.42068195,2915.7,2915.4,0.01080758]
[1644747218253,3.42068195,2915.7,2915.1,0.85739]
[1644747218451,3.42068195,2915.7,2915.4,0.01080758]
[1644747219325,3.42068195,2915.7,2915.1,0.85739]
[1644747219697,3.42068195,2915.7,2915.4,0.01080758]
[1644747220497,3.42068195,2915.7,2915.1,0.85739]
[1644747220896,3.42068195,2915.7,2915.4,0.01080758]
[1644747221699,3.42068195,2915.7,2915.1,0.85739]
[1644747222098,3.42068195,2915.7,2915.4,0.01080758]
[1644747223047,3.42068195,2915.7,2915.1,0.85739]
[1644747223248,3.42068195,2915.7,2915.4,0.01080758]
[1644747224247,4.26027092,2915.7,2915.1,0.85739]
[1644747224464,4.26027092,2915.7,2915.4,0.01080758]
[1644747225452,4.26027092,2915.7,2915.1,0.85739]
[1644747225650,4.26027092,2915.7,2915.4,0.01080758]
[1644747226106,1.45898921,2915.6,2915.4,0.01080758]
[1644747226500,1.45898921,2915.6,2915.0,0.1713]
[1644747226911,1.45898921,2915.6,2915.4,0.01080764]
[1644747227303,1.45898921,2915.6,2914.6,3.4804]
[1644747227304,0.02161528,2915.3,2914.6,3.4804]
[1644747227503,1.45898921,2915.2,2914.4,0.00265874]
[1644747227704,4.45267141,2915.1,2914.1,0.00265874]
[1644747228009,2.10496495,2915.0,2914.4,0.00265874]
[1644747228218,2.10496495,2915.0,2914.1,0.00265874]
[1644747228219,3.5,2914.9,2914.1,0.00265874]
[1644747228409,1.63048921,2914.8,2914.1,0.00265874]
[1644747228601,1.45898921,2914.7,2914.1,0.00265874]
[1644747229001,1.11019939,2914.6,2914.1,0.00265874]
[1644747229230,1.63048921,2914.5,2914.1,0.00265874]
[1644747229404,1.45898921,2914.4,2914.1,0.00265874]
[1644747229604,2.47648921,2914.4,2914.0,0.137183]
[1644747229852,1.45898921,2914.3,2914.0,0.137183]
[1644747230306,0.1715,2914.5,2914.0,0.137183]
[1644747230446,0.1715,2914.5,2914.1,0.00265874]
[1644747231246,3.57047029,2914.5,2914.1,0.00265874]
[1644747231649,3.39897029,2914.5,2914.2,0.01081457]
[1644747232648,3.39897029,2914.5,2913.4,0.00265874]
[1644747232848,3.39897029,2914.5,2914.2,0.00405828]
[1644747233924,3.39897029,2914.5,2913.4,0.00265874]
[1644747234103,3.39897029,2914.5,2914.2,0.00405828]
[1644747235101,1.15137843,2914.1,2913.4,0.00265874]
[1644747235316,1.15137843,2914.1,2913.7,0.04329085]
[1644747236321,1.15137843,2914.1,2913.4,0.00265874]
[1644747236506,3.17015418,2914.3,2913.8,0.01082148]
[1644747237103,3.77275747,2914.7,2913.8,0.01082148]
[1644747237355,4.44936658,2914.7,2913.8,0.01082148]
[1644747237547,4.45997564,2914.7,2913.4,0.00265874]
[1644747237748,0.86587093,2914.3,2913.4,0.00265874]
[1644747240053,4.45997564,2914.7,2913.7,0.01081661]
[1644747240254,1.2134,2914.7,2913.7,0.01081661]
[1644747240457,1.2134,2914.7,2913.7,0.01347535]
[1644747240964,1.2134,2914.7,2913.7,0.00265874]
[1644747241243,1.2134,2914.7,2914.1,0.01081613]
[1644747241244,1.09685062,2914.4,2914.1,0.01081613]
[1644747242208,7.67616758,2914.7,2913.6,0.00265874]
[1644747242421,7.67616758,2914.7,2914.1,0.01081606]
[1644747242609,4.6134,2914.7,2914.1,0.01081606]
[1644747243212,0.83723543,2914.5,2914.1,0.01081606]
[1644747243413,0.83723543,2914.5,2913.6,0.00265874]
[1644747243625,0.83723543,2914.5,2914.3,0.01081585]
[1644747244712,0.83723543,2914.5,2913.6,0.00265874]
[1644747244951,3.19821772,2914.4,2914.3,0.01081585]
[1644747245151,0.83723543,2914.5,2914.3,0.01081585]
[1644747245354,3.06834057,2914.4,2914.3,0.01081585]
[1644747245766,3.06834057,2914.4,2913.6,0.00265874]
[1644747245949,3.03177416,2914.4,2913.6,0.00265874]
[1644747246149,3.03177416,2914.4,2914.2,0.01081592]
[1644747246950,3.03177416,2914.4,2913.7,0.04327106]
[1644747247153,3.03177416,2914.4,2913.4,0.00265874]
[1644747247351,0.99837424,2913.8,2913.7,0.04327059]
[1644747248154,0.99837424,2913.8,2913.4,0.00265874]
[1644747248597,0.99837424,2913.8,2913.6,0.01081675]
[1644747249198,1.2034,2914.3,2913.6,0.01081675]
[1644747249400,1.2034,2914.3,2913.4,0.00265874]
[1644747249599,1.2034,2914.3,2913.8,0.01081647]
[1644747250305,1.02187743,2914.1,2913.8,0.01081647]
[1644747250504,1.2034,2914.3,2913.8,0.01081647]
[1644747250729,1.2034,2914.3,2913.4,0.00265874]
[1644747250907,1.2034,2914.3,2913.8,0.01081647]
[1644747251720,1.1288274,2914.2,2913.8,0.01081647]
[1644747252012,1.1288274,2914.2,2913.9,0.01081633]
[1644747253058,1.1288274,2914.2,2913.4,0.00265874]
[1644747253334,1.1288274,2914.2,2913.9,0.01081633]
[1644747254157,1.1288274,2914.2,2913.5,0.04327183]
[1644747254360,1.1288274,2914.2,2913.4,1.00265874]
[1644747254361,1.2034,2914.3,2913.4,1.00265874]
[1644747254566,1.2034,2914.3,2913.9,0.01081633]
[1644747254764,3.6924904,2914.6,2913.9,0.01081633]
[1644747255460,3.6924904,2914.6,2913.4,2.13505874]